Cogmind - Beta 16 @@@ ROGUE MODE // 2026.02.08 @ 14:40:51 Player: Bt-7274 Result: Self-destructed Performance ------------- Evolutions (1) 500 Regions Visited (2) 400 Robots Destroyed (16) 80 Value Destroyed (238) 238 Prototype IDs (3) 60 Alien Tech Used (0) 0 Bonus (0) 0 TOTAL SCORE: 1278 Bonus ------- None Cogmind --------- Core Integrity 303/400 Matter 18/300 Energy 27/100 System Corruption 0% Temperature Cool (0) Movement Core (300) Ox5 Location -9/Materials Parts ------- > --- POWER (1) -------- (None) > --- PROPULSION (2) --- (None) > --- UTILITY (4) ------ Medium Storage Unit Visual Processing Unit Improved Terrain Scanner > --- WEAPON (2) ------- EM Pulse Cannon > --- INVENTORY (10) --- Light Ion Engine Aluminum Leg Wheel Structural Scanner Sensor Array Seismic Detector Improved Light Armor Plating Improved Light Armor Plating Grenade Launcher Peak State ------------ > --- POWER ------------ Light Ion Engine > --- PROPULSION ------- Aerolev Unit Aerolev Unit > --- UTILITY ---------- Medium Storage Unit Visual Processing Unit Improved Terrain Scanner Seismic Detector > --- WEAPON ----------- Assault Rifle Light Assault Rifle > --- INVENTORY -------- Light Ion Engine Aluminum Leg Wheel Structural Scanner Sensor Array Seismic Detector Improved Light Armor Plating Improved Light Armor Plating EM Pulse Cannon Grenade Launcher [Rating: 19] Favorites ----------- Power Light Ion Engine Engine Light Ion Engine Propulsion Aluminum Leg Leg Aluminum Leg Hover Unit Aerolev Unit Utility Seismic Detector Device Seismic Detector Storage Medium Storage Unit Processor Visual Processing Unit Weapon Assault Rifle Energy Cannon EM Pulse Cannon Ballistic Gun Assault Rifle Launcher Grenade Launcher Special Weapon Mining Laser Build | -11 -10 -9 ------- Run | Yrd Mat Mat Slots Evolved 2 | . . 2 Power . | . . . Propulsion . | . . . Utility 2 | . . 2 Weapon . | . . . Parts Attached 20 | 8 7 5 Power 1 | 1 . . Engine 1 | 1 . . Core . | . . . Reactor . | . . . Propulsion 7 | 2 2 3 Treads . | . . . Leg 4 | 2 2 . Wheel . | . . . Hover 3 | . . 3 Flight . | . . . Utility 6 | 2 3 1 Device 3 | 1 2 . Storage 2 | 1 1 . Processor 1 | . . 1 Hackware . | . . . Protection . | . . . Artifact . | . . . Weapon 6 | 3 2 1 Energy Gun . | . . . Energy Cannon 1 | . . 1 Ballistic Gun 3 | 3 . . Ballistic Cannon . | . . . Launcher 1 | . 1 . Special Weapon 1 | . 1 . Impact Weapon . | . . . Slashing Weapon . | . . . Piercing Weapon . | . . . Special Melee Weapon . | . . . Unidentified Prototypes 1 | . . 1 Parts Lost 6 | . 1 5 Power 1 | . . 1 Propulsion 1 | . . 1 Utility 1 | . . 1 Weapon 3 | . 1 2 Highest Loss Streak 5 | . 1 5 To Critical Strikes . | . . . Average Backups 7 | 2 8 9 Power . | . 1 1 Propulsion 1 | . 1 1 Utility 2 | . 3 4 Weapon 2 | 1 2 2 Tool/Special . | . . . Unused Backups 6 | . . 6 Power 1 | . . 1 Propulsion 1 | . . 1 Utility 4 | . . 4 Weapon . | . . . Tool/Special . | . . . Average Slot Usage (%) 97 | . 100 85 Engine 13 | . 14 9 Leg 25 | . 28 12 Device 15 | . 14 20 Storage 13 | . 14 11 Processor 1 | . . 11 Ballistic Gun 26 | . 27 18 Peak Build Rating 19 | 7 9 19 Average Rating 8 | 5 8 11 On Entrance 4 | . 7 7 Avg Prop Armor Cover (%) 5 | . . 5 Naked Turns . | . . . Heaviest Build 18 | 13 18 18 Greatest Support 20 | 20 20 20 Greatest Overweight (x) 5 | . . 5 Average Overweight (x) . | . . . Largest Inventory Capacity 10 | 8 10 10 Average Capacity 9 | 7 9 10 Most Carried 10 | 6 10 10 Average Carried 7 | 3 8 9 Final Capacity 10 | 8 10 10 Final Carried 10 | 6 10 9 Class Distribution -------------------- 84% | Mutant 15% | Scavenger-Mutant Dominant Class ---------------- Mutant | -10/Materials Scavenger-Mutant | -9/Materials Resources | -11 -10 -9 ----------- Run | Yrd Mat Mat Matter Collected 405 | 296 109 . Remotely . | . . . Salvage Created 435 | 157 278 . Parts 27 | 10 17 . Haulers Intercepted . | . . . Recyclers Shooed 1 | . . 1 Parts Field Recycled . | . . . Retrieved Matter . | . . . Parts Self-Destructed . | . . . Prevented . | . . . Parts Restored . | . . . Kills | -11 -10 -9 ------- Run | Yrd Mat Mat Combat Hostiles Destroyed 7 | . 7 . Guns 5 | . 5 . AOE 2 | . 2 . Classes Destroyed 6 | 2 4 . Worker 2 | 2 . . Tunneler 5 | 5 . . Recycler 1 | . 1 . Watcher 1 | . 1 . Swarmer 3 | . 3 . Grunt 4 | . 4 . Best Kill Streak 4 | 3 4 . Combat Bots Only 3 | . 3 . Max Kills in Single Turn 2 | 1 2 . Gunslinging . | . . . Exploded 2 | . 2 . Melee . | . . . Uniques/NPCs Destroyed . | . . . Combat | -11 -10 -9 -------- Run | Yrd Mat Mat Hostile Shots Fired 123 | . 65 58 Missed 37 | . 22 15 Hits 86 | . 43 43 Projectile 86 | . 43 43 Damage Taken 817 | . 459 358 Core 192 | . 95 97 Absorbed by Shields . | . . . Core Remaining (%) 81 | 100 62 . Volleys Fired 50 | 14 29 7 Largest 2 | 2 2 2 Hottest 100 | 40 100 83 Shots Fired 95 | 28 57 10 Gun 90 | 28 54 8 Cannon 2 | . . 2 Launcher 2 | . 2 . Special 1 | . 1 . Kinetic 90 | 28 54 8 Thermal 1 | . 1 . Explosive 2 | . 2 . Electromagnetic 2 | . . 2 Robot Hit Streak 10 | 5 10 8 Robot Miss Streak 4 | 2 4 2 Penetration Max . | . . . Secondary Targets . | . . . Shots Hit Robots 56 | 16 34 6 Core Hits 26 | 8 17 1 Critical Kills . | . . . Critical Parts Destroyed . | . . . Critical Strikes . | . . . Melee Attacks . | . . . Impact . | . . . Slashing . | . . . Piercing . | . . . Sneak Attacks . | . . . Combat Hostiles . | . . . Follow-up Attacks . | . . . Damage Inflicted 832 | 193 571 68 Guns 662 | 193 406 63 Cannons . | . . . Explosions 165 | . 165 . Melee . | . . . Ramming 5 | . . 5 Kinetic 662 | 193 406 63 Thermal . | . . . Explosive 165 | . 165 . Electromagnetic . | . . . Impact . | . . . Slashing . | . . . Piercing . | . . . Highest Corruption . | . . . Average Corruption . | . . . Corruption Purged . | . . . Corruption Blocked . | . . . Overload Shots . | . . . Overflow Damage 23 | . 23 . Projectiles . | . . . Explosions 23 | . 23 . Melee . | . . . Knockbacks . | . . . Impact . | . . . Kinetic . | . . . Secondary . | . . . Self-Inflicted Damage . | . . . Shots . | . . . Rammed . | . . . Targets Rammed 3 | . . 3 Kicked 3 | . . 3 Crushed . | . . . Highest Temperature 26 | . 20 26 Average Temperature 9 | . 5 19 Received Heat Transfer 195 | . 177 18 Siege Activations . | . . . Martial Activations . | . . . Shielding Activations . | . . . Robots Disrupted . | . . . Combat Hostiles . | . . . Robots Corrupted . | . . . Combat Hostiles . | . . . Parts Fried . | . . . Impact Corruptions . | . . . Robots Melted . | . . . Combat Hostiles . | . . . Parts Melted . | . . . Heat Transferred . | . . . Parts Sabotaged . | . . . Parts Stolen . | . . . Parts Stripped . | . . . Power Chain Reactions . | . . . Alert | -11 -10 -9 ------- Run | Yrd Mat Mat Maximum Alert Level . | . . . Low Security (%) 100 | 100 100 100 Level 1 . | . . . Level 2 . | . . . Level 3 . | . . . Level 4 . | . . . Level 5 . | . . . High Security . | . . . Max Security . | . . . Peak Influence 192 | 15 192 68 Initial 68 | . 3 68 Average 37 | 3 45 23 Influence Increases 406 | 35 326 45 Destroy 0b10 Robot/C 140 | . 140 . Destroy 0b10 Robot/NC 45 | 35 10 . Destroy Leader 32 | . 32 . Successful Hack 26 | . 26 . Destroy Structure 13 | . 13 . Lose Combat Pursuer 150 | . 105 45 Influence Decreases 386 | 30 167 189 Entered New Map 98 | . 2 96 Time Decay 273 | 30 155 88 Lost Part 15 | . 10 5 Squads Dispatched 3 | . 3 . Investigation 3 | . 3 . Extermination . | . . . Reinforcement . | . . . Assault . | . . . Garrison . | . . . Intercept . | . . . Searches Triggered . | . . . Construction Impeded . | . . . Haulers Reinforced . | . . . Active Scanning Responses . | . . . Cargo Convoy Interrupts . | . . . Stealth | -11 -10 -9 --------- Run | Yrd Mat Mat Distress Signals 1 | . . 1 Communications Jammed . | . . . Distress Signals . | . . . Times Spotted 26 | . 18 8 Peak Tracking Total 8 | . 5 8 Tactical Retreats 4 | . 2 2 Traps | -11 -10 -9 ------- Run | Yrd Mat Mat Traps Triggered 2 | . 2 . Indirectly . | . . . Trap Hack Attempts . | . . . Triggered . | . . . Disarmed . | . . . Reprogrammed . | . . . Reused . | . . . Traps Extracted . | . . . Installed . | . . . Triggered . | . . . Machines | -11 -10 -9 ---------- Run | Yrd Mat Mat Machines Disabled . | . . . Max in Single Turn . | . . . Machines Repaired . | . . . Machines Dismantled . | . . . Machines Sabotaged . | . . . Overloaded Fab Kills . | . . . Hacking | -11 -10 -9 --------- Run | Yrd Mat Mat Machines Accessed 6 | . 6 . Terminals 5 | . 5 . Fabricators . | . . . Repair Stations . | . . . Recycling Units 1 | . 1 . Scanalyzers . | . . . Garrison Access . | . . . Total Hacks 16 | . 16 . Successful 9 | . 9 . Failed 7 | . 7 . Catastrophic 1 | . 1 . Database Lockouts . | . . . Manual 13 | . 13 . Terminals 15 | . 15 . Fabricators . | . . . Repair Stations . | . . . Recycling Units 1 | . 1 . Scanalyzers . | . . . Garrison Access . | . . . Terminal Hacks 3 | . 3 . Prototype ID Bank 1 | . 1 . Terminal Index 1 | . 1 . Recall Investigation 1 | . 1 . Fabricator Hacks . | . . . Repair Station Hacks . | . . . Recycling Unit Hacks . | . . . Scanalyzer . | . . . Garrison Access Hacks . | . . . Unauthorized Hacks 6 | . 6 . Terminals 5 | . 5 . Botnet 5 | . 5 . Fabricators . | . . . Repair Stations . | . . . Recycling Units 1 | . 1 . Recyclers 1 | . 1 . Scanalyzers . | . . . Garrison Access . | . . . Data Cores Recovered . | . . . Used . | . . . Hacking Detections 5 | . 5 . Full Trace Events 2 | . 2 . Feedback Events . | . . . Feedback Blocked . | . . . Robot Schematics Acquired . | . . . Robots Built . | . . . Authchips . | . . . Time . | . . . Total Robot Build Rating . | . . . Part Schematics Acquired . | . . . Parts Built . | . . . Authchips . | . . . Time . | . . . Total Part Build Rating . | . . . Part Studies Acquired . | . . . Parts Repaired . | . . . Time . | . . . Parts Recycled . | . . . Recycled Matter . | . . . Retrieved Matter . | . . . Retrieved Components . | . . . Parts Scanalyzed . | . . . Part Schematics Acquired . | . . . Parts Damaged . | . . . Bothacking | -11 -10 -9 ------------ Run | Yrd Mat Mat Used RIF Installer . | . . . Robots Hacked . | . . . Non-combat . | . . . Combat . | . . . Robot Hacks Applied . | . . . Relay Couplers Released . | . . . Fabnet Peak Effective % . | . . . Robots Rewired . | . . . Allies Hacked . | . . . Hacks Repelled . | . . . Allies | -11 -10 -9 -------- Run | Yrd Mat Mat Total Allies . | . . . Largest Group . | . . . Highest-Rated Group . | . . . Highest-Rated Ally . | . . . Total Orders . | . . . Ally Attacks . | . . . Total Damage . | . . . Kills . | . . . Allies Corrupted . | . . . Allies Melted . | . . . Intel | -11 -10 -9 ------- Run | Yrd Mat Mat Active Infowar (turns) 1330 | 79 1030 221 Optics 221 | . . 221 Terrain 490 | . 270 220 Seismic 1042 | 79 760 203 Robot Analysis Total . | . . . Derelict Logs Recovered . | . . . Drone Launches . | . . . Drone Recoveries . | . . . Exploration | -11 -10 -9 ------------- Run | Yrd Mat Mat Turns Passed 1401 | 150 1030 221 Spaces Moved 654 | 78 470 106 Core 6 | 3 . 3 Treads . | . . . Legs 647 | 75 470 102 Wheels . | . . . Hover 1 | . . 1 Flight . | . . . Fastest Speed 50 | 50 120 120 Average Speed 127 | 117 120 167 Slowest Speed 300 | 120 120 300 Overloaded Moves . | . . . Propulsion Burnouts . | . . . Robots Hopped . | . . . Potential Cave-ins . | . . . Cave-ins Triggered . | . . . Exploration Rate (%) 20 | 4 50 7 Regions Visited 2 Branch Regions . Pre-discovered Areas . | . . . Known Exits Taken . | . . . Unknown Exits Taken 2 | 1 1 . Scrap Searched . | . . . Spaces Dug 1 | . 1 . Terrain Destroyed 12 | . 12 . Melee . | . . . Projectile 1 | . 1 . AOE 11 | . 11 . Terrain Rammed . | . . . Walls Destroyed . | . . . Machines Disabled . | . . . Actions | -11 -10 -9 --------- Run | Yrd Mat Mat Total 1117 | 104 874 139 Wait 364 | . 360 4 Move 652 | 77 469 106 Hop . | . . . Pick Up 15 | 5 4 6 Fast Attach 8 | 7 . 1 Attach 4 | . . 4 Detach . | . . . Swap 13 | 1 9 3 Drop 8 | . 3 5 Fire 50 | 14 29 7 Melee . | . . . Ram . | . . . Kick 3 | . . 3 Crush . | . . . Escape Stasis . | . . . Rewire . | . . . Trap . | . . . Miscellaneous . | . . . Route ------- -11/Scrapyard -10/Materials (discovered 3 exits: [*Mat] / [*Min x2]) -9/Materials History --------- Turn | Location | Event 4 | -11/Scrapyard | Discovered new exit (range 16) 151 | -11/Scrapyard | Entered Materials 313 | -10/Materials | Build established: Mutant 566 | -10/Materials | Discovered new exit (range 6) 1163 | -10/Materials | Discovered new exit (range 14) 1169 | -10/Materials | Discovered new exit (range 12) 1181 | -10/Materials | Entered another Materials area 1181 | -9/Materials | Evolved 2 slots: Utility x2 1402 | -9/Materials | Self-destructed Last Messages --------------- Acquired EM Pulse Cannon. Acquired Prototype Hover Unit. Identified Aerolev Unit. Faulty integration triggers energy drain (-34). Dropped Faulty Aerolev Unit. Acquired Aerolev Unit. Dropped Aerolev Unit. R-06 Scavenger collects Aerolev Unit. Acquired Aluminum Leg. Dropped Aluminum Leg. Acquired Aluminum Leg. R-06 Scavenger collects Aerolev Unit. W-16 Scout sends out distress signal. Assault Rifle destroyed. Kicked S-10 Pest out of the way. Lgt. Ion Engine destroyed. Kicked S-10 Pest. Aluminum Leg destroyed. Seismic Detector destroyed. Lgt. Assault Rifle destroyed. Map ----- +----------------------------------------------------+ | ?????????????????????????????????????????????????? | | ?????????????????????????????"????? ?????????????? | | ??????????????????????????????????? ?????????????? | | ?????????????????????????????????????????????????? | | ???????????????????#?????????????????????????????? | | ?????????#?????????????? ????????????????????????? | | ???????????????????????#???????? ????????"??? ???? | | ???????????????????????????##????????"?? ????????? | | ???????????????#?????########?##?????????????????? | | ?????????????????????#! = ]##?#??????? ???? ????? | | ???????????????????#?#! ]]#??#??????###????????? | | ???????????????#?????# #???###########??????? | | ?????????????######### ##### ! #??????? | | ????????? + #??????? | | ????????? # #?#????? | | ????????? # """"""" #??????? | | ?????????## ################ + """"""" #??????? | | ??????????????#????#?#??????# # """"""" #??????? | | ????????????????##??????????# # """"""" #??????? | | ?????????????????#????#?????# # """"""" #??????? | | ?????????????????????######## ############### | | ?????????????????"???# # | | ???????????????? ????#!!! # | | ?????????????????????#!!! sg | | ???????????? # #!!! # #### | | ??????????????# s @ # #??? | | ??????????????+ # # #???? """ """ | | ????????????? # """??#############??? """"""""??? | | ??????????????????????????##?????????? """"?????? | | ???????????????????? ???#?#??????????? ????? | | ????????????????????????#????? ??? +??? ????? | | ??????????????? ??????????????????????? ####????? | | ???????????????????????????????????#???? #???????? | | ?????????????????#?????????????????#????##???????? | | ?????????????????????#???????????????????????????? | | ????????????????????????#????????????#???#???????? | | ??????????????????????#???????#?????#????????????? | | ?????????????????????????????????????????????????? | | ?????????????????????????????#??#????????????????? | | ?????????????????????????????????????????????????? | | ?????????????????????????????????????????????????? | | | | | | | | | | | | | | | | | | | +----------------------------------------------------+ Best States ------------- Heat Dissipation 28 Energy Generation 10 Energy Capacity 125 Matter Stores 237 Matter Capacity 300 Sight Range 18 Terrain Scan Range 16 Terrain Scan Density 10 Evasion (%) 55 Item Schematics ----------------- None Robot Schematics ------------------ None Fabricated ------------ Nothing Repaired ---------- Nothing Studied --------- None Alien Tech Used ----------------- None Achievements -------------- Quantum Hacking Challenges ------------ None Game ------ Seed SensorShadePower Manual? 0 Play Time 00:16:55 Cumulative 63.5 hours Start 2026.02.08 @ 14:25:55 End 2026.02.08 @ 14:40:51 Sessions 1 Manual Loads 0 Difficulty Rogue Special Mode None Game No. 80 Rogue 80 Adventurer 0 Explorer 0 Win Type - Total 1 Types 1/0/0/0/0/0/0/0/0/0 Lore% 40 Gallery% 46 Achievement% 31 Wizard Run 0 Options --------- Layout 1 ASCII 0 Keyboard 0 Movement Numpad Keybinds 0 Fullscreen 1 Font 16/SmallcapsGlow Map View 55x38 Zoom Use 0% Tactical HUD 0 Map Filters NONE Filters NONE Steam 1 RUN: 1f5d8066-b16a-43fc-b4f6-15fa446db5d9